bitfinex-derivatives/quotes_ETHF0:USTF0_20250331
["timestamp","ask_amount","ask_price","bid_price","bid_amount"]
[1743419281436,3.2682,1800.8,1800.7,2.58786]
[1743419282327,2.1575,1800.8,1800.7,2.58786]
[1743419282530,5.3493,1800.9,1800.7,2.5878]
[1743419282731,1.4063,1800.8,1800.7,1.1107]
[1743419283423,4.18306,1800.8,1800.5,3.948]
[1743419283626,1.11089,1800.5,1800.4,1.8101]
[1743419284134,2.1028,1800.6,1800.5,1.11089]
[1743419284638,3.21362,1800.6,1800.5,1.11089]
[1743419285338,2.1028,1800.6,1800.3,0.0083257]
[1743419285535,1.11095,1800.4,1800.3,0.0083257]
[1743419286031,1.79965,1800.4,1800.3,0.0083257]
[1743419286230,1.1112,1800.1,1800.0,1.11119]
[1743419286840,3.19792,1800.2,1800.1,1.11113]
[1743419287037,1.11116,1800.1,1800.0,1.11115]
[1743419289739,1.8159357,1800.2,1800.1,1.11113]
[1743419289937,1.1112,1800.0,1799.9,0.0083257]
[1743419290239,7.8556257,1800.2,1800.1,1.11113]
[1743419290539,5.0236957,1800.2,1800.1,1.11113]
[1743419290840,0.0083257,1800.2,1800.1,1.11113]
[1743419291040,0.0083257,1800.2,1800.1,1.85223]
[1743419293937,0.6849,1800.6,1800.5,1.11089]
[1743419294143,1.79572,1800.6,1800.5,1.11089]
[1743419294444,1.11095,1800.5,1800.4,1.11092]
[1743419294744,1.79576,1800.6,1800.5,1.11089]
[1743419295242,1.79572,1800.6,1800.5,1.11089]
[1743419295840,0.6849,1800.6,1800.2,0.7518]
[1743419296045,1.11098,1800.4,1800.3,1.11095]
[1743419296739,3.2078,1800.5,1800.1,3.9489]
[1743419297036,3.2078,1800.5,1800.4,1.11095]
[1743419297037,4.31875,1800.5,1800.4,1.11095]
[1743419297244,1.11099,1800.4,1800.3,1.11096]
[1743419297544,1.11099,1800.4,1800.3,2.49376]
[1743419298346,3.2078,1800.5,1800.4,1.11095]
[1743419298347,8.26174,1800.5,1800.4,1.11095]
[1743419299138,1.11095,1800.4,1800.3,2.49377]
[1743419299342,1.11095,1800.4,1800.3,1.11097]
[1743419299848,1.83465,1800.4,1800.3,1.11097]
[1743419300240,1.83465,1800.4,1800.2,1.3828]
[1743419300241,1.11101,1800.3,1800.2,2.49384]
[1743419300547,1.8347,1800.4,1800.3,1.11101]
[1743419301240,1.11101,1800.3,1800.2,2.49381]
[1743419301442,0.7237,1800.4,1799.9,5.9941657]
[1743419301443,1.11117,1800.1,1799.9,5.9941657]
[1743419301648,1.1112,1800.0,1799.9,1.4755257]
[1743419302235,1.8349,1800.0,1799.9,1.4755257]
[1743419302449,1.8349,1800.0,1799.9,2.5867857]
[1743419302647,1.8349,1800.0,1799.9,1.4755257]
[1743419303350,1.8349,1800.0,1799.9,2.5867857]
[1743419304046,1.8349,1800.0,1799.9,1.4755257]
[1743419305639,1.8349,1800.0,1799.9,0.0083257]
[1743419306851,1.8349,1800.0,1799.9,1.5176257]
[1743419307040,3.2863,1800.0,1799.9,1.5176257]
[1743419310252,1.1112,1800.0,1799.9,2.6288357]
[1743419310458,7.1498,1800.3,1800.2,1.11107]
[1743419310751,8.21109,1800.4,1800.1,1.11112]
[1743419311053,1.11101,1800.3,1800.2,1.4673]
[1743419311249,2.60271,1800.3,1800.2,2.57837]
[1743419311458,2.60271,1800.3,1800.2,1.4673]
[1743419311857,2.60271,1800.3,1800.2,2.57837]
[1743419312250,1.4917,1800.3,1800.2,2.57837]
[1743419313862,1.4917,1800.3,1800.2,1.11107]
[1743419313863,2.60271,1800.3,1800.2,1.11107]
[1743419314053,3.31071,1800.3,1800.2,1.11107]
[1743419314359,2.60271,1800.3,1800.2,1.11107]
[1743419315060,1.4917,1800.3,1800.2,2.59987]
[1743419315460,0.7232,1800.5,1800.4,1.11095]
[1743419315662,4.3269357,1800.7,1800.6,1.11082]
[1743419315957,1.11082,1800.6,1800.5,2.56274]
[1743419316158,1.4953,1800.6,1800.5,2.56274]
[1743419316366,2.60612,1800.6,1800.5,2.56274]
[1743419316562,2.60612,1800.6,1800.5,1.4519]
[1743419317356,1.11095,1800.4,1800.3,0.7568]
[1743419317560,1.11095,1800.4,1800.3,1.4519]
[1743419317762,1.11105,1800.3,1800.2,1.11104]
[1743419317963,1.11115,1800.1,1800.0,1.11115]
[1743419318157,1.11115,1800.1,1800.0,2.56305]
[1743419318456,1.4249,1800.2,1800.1,1.11113]
[1743419318655,1.4249,1800.2,1800.0,1.4519]
[1743419318854,1.11113,1800.1,1800.0,2.56308]
[1743419319250,2.53603,1800.1,1800.0,2.56308]
[1743419319455,1.4249,1800.1,1800.0,2.56308]
[1743419319655,1.11112,1800.2,1800.1,1.11113]
[1743419319954,2.53602,1800.2,1800.1,2.49763]
[1743419321863,1.4249,1800.2,1800.1,2.49763]
[1743419322056,7.1488,1800.3,1800.2,1.11107]
[1743419322360,3.2078,1800.3,1800.2,3.36717]
[1743419323063,4.31881,1800.3,1800.2,3.36717]
[1743419323371,5.76301,1800.3,1800.2,2.2561]
[1743419323567,5.76301,1800.3,1800.2,3.36717]
[1743419324462,4.652,1800.3,1800.2,3.36717]
[1743419324657,5.76301,1800.3,1800.2,3.36717]
[1743419325263,4.6739,1800.5,1800.2,2.2561]
[1743419325456,7.16664,1800.5,1800.4,1.11095]
[1743419325856,7.16664,1800.5,1800.4,2.55295]
[1743419326457,7.16664,1800.5,1800.4,1.442]
[1743419328565,7.16664,1800.5,1800.4,2.55295]
[1743419328857,7.16664,1800.5,1800.4,1.442]
[1743419329362,2.77753,1800.3,1799.9,0.0083257]
[1743419329567,1.11138,1799.7,1799.6,3.9406]
[1743419329761,1.11138,1799.7,1799.6,2.5273]
[1743419330461,2.60007,1799.8,1799.7,1.11138]
[1743419330863,3.94,1799.9,1799.8,1.11132]
[1743419331259,1.11133,1799.8,1799.7,1.11132]
[1743419331964,6.43981,1799.9,1799.8,1.11132]
[1743419332360,1.11138,1799.7,1799.6,2.52729]
[1743419332762,2.49988,1799.8,1799.7,1.11138]
[1743419333059,3.94,1799.9,1799.7,1.11138]
[1743419333265,1.11132,1799.8,1799.7,1.11138]
[1743419333467,2.49982,1799.8,1799.7,1.11138]
[1743419336963,1.3885,1799.8,1799.7,1.11138]
[1743419337170,2.49982,1799.8,1799.7,1.11138]
[1743419337371,1.3885,1799.8,1799.7,1.11138]
[1743419337570,2.49982,1799.8,1799.7,1.11138]
[1743419338570,1.11138,1799.7,1799.6,1.80594]
[1743419338765,2.49938,1799.7,1799.6,1.80594]
[1743419339269,1.388,1799.7,1799.6,1.80594]
[1743419339470,2.49936,1799.8,1799.7,1.11132]
[1743419340571,1.388,1799.8,1799.7,1.11132]
[1743419340773,2.49932,1799.8,1799.7,1.11132]
[1743419341074,3.2078,1800.4,1800.0,2.77796]
[1743419341372,5.78226,1800.3,1800.2,1.11107]
[1743419341665,6.8455,1800.3,1799.8,3.2078]
[1743419341866,1.11118,1800.1,1800.0,1.11117]
[1743419342264,1.482,1800.1,1800.0,1.11117]
[1743419343673,2.59313,1800.1,1800.0,1.11117]
[1743419343972,2.77829,1799.9,1799.5,3.2161257]
[1743419344170,2.77829,1799.9,1799.7,1.11138]
[1743419344171,4.6146,1799.8,1799.7,1.11138]
[1743419344468,6.52462,1799.8,1799.7,1.11138]
[1743419344670,6.52462,1799.8,1799.5,3.2161257]
[1743419344671,1.1114,1799.7,1799.5,3.2161257]
[1743419344867,2.621,1799.7,1799.6,1.11141]
[1743419345070,1.5096,1799.7,1799.6,1.11141]
[1743419345769,2.62098,1799.7,1799.6,1.11141]
[1743419346471,1.5096,1799.7,1799.6,1.11141]
[1743419346776,1.1196457,1799.8,1799.7,1.11138]
[1743419346976,0.0083257,1799.8,1799.7,1.11138]
[1743419347374,1.1196457,1799.8,1799.7,1.81208]
[1743419347577,0.0083257,1799.8,1799.7,3.27158]
[1743419348074,0.0083257,1799.8,1799.7,6.47938]
[1743419351066,3.2078,1800.6,1799.9,5.55609]
[1743419351270,1.11101,1800.3,1800.2,1.11103]
[1743419351472,1.11101,1800.3,1800.2,1.4621]
[1743419351671,2.59441,1800.3,1800.2,1.4621]
[1743419352682,6.53341,1800.3,1800.2,2.57317]
[1743419352872,1.11109,1800.2,1800.1,1.11112]
[1743419353073,3.24189,1800.2,1800.1,1.11113]
[1743419353476,2.1308,1800.2,1800.1,1.11113]
[1743419353676,1.3944,1800.2,1800.1,1.11113]
[1743419354178,8.6434257,1800.4,1800.3,1.11101]
[1743419354576,3.9680257,1800.4,1800.2,2.50423]
[1743419354775,9.0170057,1800.4,1800.3,1.11101]
[1743419355581,7.9060257,1800.4,1800.3,1.11101]
[1743419356278,9.3802257,1800.4,1800.3,1.11101]
[1743419356477,10.4911757,1800.4,1800.3,1.11101]
[1743419357983,1.11101,1800.3,1800.2,1.4864]
[1743419358172,3.28641,1800.3,1800.2,1.4864]
[1743419358373,3.28641,1800.3,1800.2,2.59744]
[1743419358775,1.4765,1800.3,1800.2,2.59744]
[1743419359786,9.0169757,1800.4,1800.3,1.11101]
[1743419359978,7.2856757,1800.4,1800.3,2.48451]
[1743419360184,10.4934757,1800.4,1800.3,2.48451]
[1743419363380,9.3825257,1800.4,1800.3,2.48451]
[1743419363884,10.4934757,1800.4,1800.3,2.48451]
[1743419368391,1.11116,1800.1,1800.0,1.11113]
[1743419368588,1.11116,1800.1,1800.0,2.52723]
[1743419369076,2.51246,1800.1,1800.0,2.52723]
[1743419370791,1.4013,1800.1,1800.0,2.52723]
[1743419371384,2.51243,1800.1,1800.0,2.52723]
[1743419371586,1.4013,1800.1,1800.0,2.52723]
[1743419371994,5.04706,1800.3,1800.2,1.11107]
[1743419372289,1.11107,1800.2,1800.1,2.58238]
[1743419373687,9.67076,1800.3,1800.2,1.11107]
[1743419373891,9.67076,1800.3,1800.2,2.58917]
[1743419374188,6.46296,1800.3,1800.2,2.58917]
[1743419376993,9.67076,1800.3,1800.2,1.4781]
[1743419377295,1.11113,1800.1,1800.0,1.11116]
[1743419378394,5.04706,1800.3,1800.2,1.11107]
[1743419378591,6.41826,1800.3,1800.2,1.11107]
[1743419378896,1.11107,1800.2,1800.1,2.5121]
[1743419379087,2.50377,1800.2,1800.1,2.5121]
[1743419379288,2.50377,1800.2,1800.1,2.51213]
[1743419380393,1.3927,1800.2,1800.1,2.51213]
[1743419381597,2.50377,1800.2,1800.1,2.51213]
[1743419385896,6.71354,1800.3,1800.2,1.11107]
[1743419385897,5.04602,1800.3,1800.2,1.11107]
[1743419386094,5.04602,1800.3,1800.2,3.20157]
[1743419386691,3.935,1800.3,1800.2,3.20157]
[1743419387293,5.04601,1800.3,1800.2,3.20157]
[1743419387791,3.935,1800.3,1800.2,3.20157]
[1743419388095,1.11101,1800.3,1800.2,3.20157]
[1743419388700,7.2372157,1800.4,1800.3,1.11101]
[1743419388903,7.2372157,1800.4,1800.3,2.59501]
[1743419389901,7.2372157,1800.4,1800.3,1.484]
[1743419390303,7.2372157,1800.4,1800.3,2.59501]
[1743419392591,3.9423257,1800.4,1800.3,2.59501]
[1743419392789,0.0083257,1800.4,1800.3,2.59501]
[1743419392996,0.0083257,1800.4,1800.3,3.31881]
[1743419395703,0.0083257,1800.4,1800.3,2.2078]
[1743419398602,0.0083257,1800.4,1800.3,1.484]
[1743419398901,1.4122257,1800.4,1800.2,0.7214]
[1743419399107,1.4122257,1800.4,1800.1,1.3695]
[1743419399108,1.4623,1800.3,1800.1,1.3695]
[1743419402199,5.3943,1800.3,1800.2,0.689]
[1743419402605,3.932,1800.3,1800.2,0.689]
[1743419404808,0.0083257,1800.4,1800.2,0.689]
[1743419405007,0.0083257,1800.4,1800.3,2.2173]
[1743419413711,7.1378,1800.9,1800.3,4.7173]
[1743419413911,5.4136,1800.9,1800.4,4.6802]
[1743419414109,0.7073,1801.0,1800.8,3.2078]
[1743419414414,29.03010145,1801.1,1800.9,2.9231]
[1743419414415,25.82230145,1801.1,1800.9,2.9231]
[1743419414615,25.82230145,1801.1,1801.0,1.4724]
[1743419415618,27.24140145,1801.1,1801.0,1.4724]
[1743419415918,1.4191,1801.1,1801.0,1.4724]
[1743419416218,1.4191,1801.1,1800.9,1.4507]
[1743419416219,1.4191,1801.1,1800.9,0.6999]
[1743419416415,1.4588,1801.0,1800.9,2.0979]
[1743419416719,0.7386,1801.0,1800.9,2.0979]
[1743419416912,0.7386,1801.0,1800.9,2.8421]
[1743419417313,0.0083257,1801.2,1800.9,2.8421]
[1743419417513,0.0083257,1801.2,1800.9,6.0499]
[1743419417715,0.0083257,1801.2,1801.0,1.398]
[1743419418618,7.1451257,1801.2,1800.9,3.2078]
[1743419418818,8.5755257,1801.2,1801.0,1.5042]
[1743419419224,1.4304,1801.1,1801.0,1.5042]
[1743419420721,2.185,1801.1,1801.0,1.5042]
[1743419421017,1.4304,1801.1,1801.0,1.5042]
[1743419422121,1.4304,1801.1,1800.9,3.2078]
[1743419422320,1.4741,1801.0,1800.8,0.0083257]
[1743419422618,4.6148,1800.9,1800.8,0.0083257]
[1743419424618,7.1148,1800.9,1800.4,3.2078]
[1743419424813,5.415,1800.8,1800.4,3.2078]
[1743419425117,1.487,1800.7,1800.4,3.2078]
[1743419425318,0.692,1800.6,1800.4,3.2078]
[1743419425520,1.487,1800.5,1800.4,3.2078]
[1743419426324,1.487,1800.5,1800.4,4.6386]
[1743419426827,1.487,1800.5,1800.4,5.74955]
[1743419427326,2.59789,1800.5,1800.4,2.54175]
[1743419427528,1.487,1800.5,1800.4,2.54175]
[1743419427820,1.487,1800.5,1800.4,5.74955]
[1743419428021,1.487,1800.5,1800.4,6.45525]
[1743419428230,0.692,1800.6,1800.5,1.11089]
[1743419428426,2.1681,1800.6,1800.5,2.59329]
[1743419428622,3.27892,1800.6,1800.5,2.59329]
[1743419428823,2.1681,1800.6,1800.5,2.59329]
[1743419430130,0.692,1800.6,1800.5,2.59329]
[1743419430319,0.692,1800.6,1800.5,3.28929]
[1743419431227,2.0908,1800.6,1800.5,3.28929]
[1743419431624,1.11073,1800.8,1800.7,1.1107]
[1743419431926,1.11076,1800.7,1800.6,2.51287]
[1743419432130,2.50954,1800.8,1800.7,1.11076]
[1743419432631,1.11081,1800.7,1800.6,1.11078]
[1743419432830,1.3988,1800.7,1800.6,1.11078]
[1743419433824,2.50956,1800.7,1800.6,1.11078]
[1743419434122,1.3988,1800.7,1800.6,1.11078]
[1743419434324,2.50956,1800.7,1800.6,1.11078]
[1743419437032,1.3988,1800.7,1800.6,1.11078]
[1743419439343,1.11075,1800.8,1800.7,1.11076]
[1743419439543,1.4353,1800.8,1800.7,1.11076]
[1743419439843,2.546,1800.8,1800.7,1.11076]
[1743419440037,2.546,1800.8,1800.7,1.80726]
[1743419440639,4.21214,1800.8,1800.4,3.2078]
[1743419440843,1.11088,1800.6,1800.5,1.11082]
[1743419441546,2.50441,1800.7,1800.6,1.11082]
[1743419443949,1.3936,1800.7,1800.6,1.11082]
[1743419444748,1.11072,1800.8,1800.7,1.11076]
[1743419444947,2.50952,1800.8,1800.7,1.83636]
[1743419445149,1.3988,1800.8,1800.7,1.83636]
[1743419445349,2.55624,1800.9,1800.8,1.1107]
[1743419445643,1.85804,1800.9,1800.8,1.1107]
[1743419445851,3.25684,1800.9,1800.8,1.1107]
[1743419446947,2.1462,1800.9,1800.8,1.1107]
[1743419447156,3.25684,1800.9,1800.8,2.6175]
[1743419447342,2.1462,1800.9,1800.8,2.6175]
[1743419447950,3.25684,1800.9,1800.8,2.6175]
[1743419448248,2.1462,1800.9,1800.8,2.6175]
[1743419449440,5.03663,1801.0,1800.9,1.11064]
[1743419449645,7.19553,1801.0,1800.9,2.60604]
[1743419450649,6.0849,1801.0,1800.9,2.60604]
[1743419450850,2.1589,1801.0,1800.9,2.60604]
[1743419451349,0.0083257,1801.2,1801.1,1.11052]
[1743419451841,0.0083257,1801.2,1801.1,3.34622]
[1743419452347,0.0083257,1801.2,1801.1,6.55402]
[1743419453947,1.1187757,1801.2,1801.1,6.55402]
[1743419454147,1.1187757,1801.2,1801.1,3.34622]
[1743419454741,0.0083257,1801.2,1801.1,3.34622]
[1743419454953,0.0083257,1801.2,1801.1,6.55402]
[1743419460360,4.31786,1801.9,1801.8,1.11002]
[1743419460557,6.49282,1801.9,1801.8,1.11002]
[1743419460756,4.02302,1801.9,1801.8,1.11002]
[1743419461354,4.02302,1801.9,1801.8,2.55222]
[1743419461355,2.913,1801.9,1801.8,2.55222]
[1743419464862,5.3730557,1802.0,1801.8,2.55222]
[1743419464863,0.3410557,1802.0,1801.9,1.11002]
[1743419465063,0.3410557,1802.0,1801.9,2.58652]
[1743419465261,1.7259557,1802.0,1801.9,2.58652]
[1743419466365,0.3410557,1802.0,1801.9,5.79432]
[1743419469264,2.1648,1802.4,1802.3,1.10978]
[1743419469968,2.1648,1802.4,1802.3,3.20698]
[1743419470565,0.0083257,1802.5,1802.4,1.10972]
[1743419470764,0.0083257,1802.5,1802.4,2.48402]
[1743419470966,0.0083257,1802.5,1802.4,5.69182]
[1743419471870,7.23699,1803.2,1803.1,1.10928]
[1743419472072,1.10932,1803.1,1803.0,1.1093]
[1743419472466,5.78256,1803.2,1803.1,1.10928]
[1743419472968,0.7533,1803.2,1803.1,1.10928]
[1743419473168,4.6733,1803.2,1803.1,1.10928]
[1743419473371,5.78252,1803.2,1803.1,1.10928]
[1743419473670,4.6733,1803.2,1803.1,1.10928]
[1743419474873,0.7533,1803.2,1803.1,1.10928]
[1743419475474,0.7533,1803.2,1803.1,2.48628]
[1743419476468,1.86252,1803.2,1803.0,3.2161257]
[1743419476667,1.86256,1803.2,1803.1,1.10928]
[1743419476869,1.10928,1803.1,1803.0,3.2161257]
[1743419477075,1.10928,1803.1,1803.0,0.0083257]
[1743419477278,1.10928,1803.1,1803.0,1.1176757]
[1743419477577,1.10928,1803.1,1803.0,1.1176357]
[1743419477977,0.7533,1803.2,1803.0,0.0083257]
[1743419478274,1.86254,1803.2,1803.1,1.10928]
[1743419478471,1.10928,1803.1,1803.0,1.1176157]
[1743419478671,1.10928,1803.1,1803.0,2.5923257]
[1743419479269,1.10928,1803.1,1801.7,64.29967658]
[1743419479270,3.2078,1803.1,1802.5,3.2078]
[1743419479470,3.2078,1803.1,1802.2,5.54904]
[1743419479471,3.2078,1802.9,1802.2,0.7135]
[1743419479780,1.10972,1802.4,1802.3,2.62673]
[1743419480275,1.84988,1802.5,1802.4,1.10972]
[1743419480475,1.84988,1802.5,1802.3,2.62674]
[1743419480476,1.10972,1802.4,1802.3,2.62674]
[1743419480677,1.85722,1802.4,1802.3,2.62674]
[1743419481081,0.7475,1802.4,1802.3,2.62674]
[1743419481276,1.85722,1802.4,1802.3,2.62674]
[1743419482578,1.10978,1802.3,1802.2,1.1181357]
[1743419482778,1.10978,1802.3,1802.2,0.0083257]
[1743419483084,5.02678,1802.3,1802.2,0.0083257]
[1743419483984,0.7475,1802.4,1802.3,1.10978]
[1743419484179,4.6572,1802.5,1802.4,1.10972]
[1743419484385,5.76685,1802.5,1802.4,1.10972]
[1743419485383,5.76685,1802.5,1802.3,1.395]
[1743419485584,5.76685,1802.5,1802.4,1.10972]
[1743419487088,5.7669,1802.5,1802.4,1.10972]
[1743419487690,1.10972,1802.4,1802.3,2.50473]
[1743419487885,1.10978,1802.3,1802.2,0.0083257]
[1743419488783,1.10978,1802.3,1802.2,1.1181657]
[1743419489088,1.10978,1802.3,1802.2,2.4844257]
[1743419490185,1.10978,1802.3,1802.2,2.4844157]
[1743419491596,1.10978,1802.3,1802.2,2.4844357]
[1743419492188,1.3675,1802.4,1802.3,1.10978]
[1743419492383,1.3675,1802.4,1802.3,2.50348]
[1743419492587,2.47722,1802.4,1802.3,2.50348]
[1743419492988,2.47722,1802.4,1802.3,1.3937]
[1743419493289,1.10978,1802.3,1802.2,1.1181457]
[1743419493488,2.59558,1802.3,1802.2,2.5118457]
[1743419493689,2.59558,1802.3,1802.2,1.4020257]
[1743419493884,2.59558,1802.3,1802.2,0.0083257]
[1743419494090,2.59558,1802.3,1802.2,1.1181657]
[1743419494497,2.59558,1802.3,1802.2,2.5118657]
[1743419495190,1.4858,1802.3,1802.2,2.5118657]
[1743419495487,2.59558,1802.3,1802.2,2.5118657]
[1743419496484,1.4858,1802.3,1802.2,2.5118657]
[1743419496687,2.59558,1802.3,1802.2,2.5118657]
[1743419501090,1.4858,1802.3,1802.2,2.5118657]
[1743419501289,2.59558,1802.3,1802.2,2.5118657]
[1743419501493,1.4858,1802.3,1802.2,2.5118657]
[1743419502195,2.59558,1802.3,1802.2,2.5118657]
[1743419502593,2.59558,1802.3,1802.2,1.4020257]
[1743419502996,5.3877,1802.3,1801.9,0.7158]
[1743419503296,1.11002,1801.9,1801.8,5.07348]
[1743419503589,1.11002,1801.9,1801.8,1.86568]
[1743419503788,8.7575,1802.1,1801.7,1.4488]
[1743419503789,1.11008,1801.8,1801.7,1.4488]
[1743419503984,1.83128,1801.8,1801.7,2.55895]
[1743419504496,3.27808,1801.8,1801.7,1.4488]
[1743419505495,1.11008,1801.8,1801.7,2.55889]
[1743419505696,2.55688,1801.8,1801.7,1.4488]
[1743419506405,1.11015,1801.7,1801.6,0.0083257]
[1743419506589,2.55695,1801.7,1801.6,0.0083257]
[1743419508590,2.55695,1801.7,1801.6,1.4903257]
[1743419508985,2.55695,1801.7,1801.6,0.0083257]
[1743419509499,1.11033,1801.4,1801.3,1.11034]
[1743419509696,1.11033,1801.4,1801.3,2.59234]
[1743419510094,2.53413,1801.4,1801.3,2.59234]
[1743419514497,1.11023,1801.6,1801.5,1.11021]
[1743419514697,5.02523,1801.6,1801.5,1.11021]
[1743419514993,3.915,1801.6,1801.5,1.11021]
[1743419515196,1.11021,1801.6,1801.5,1.11021]
[1743419516900,1.11021,1801.6,1801.4,1.5069]
[1743419516901,8.5307,1801.7,1801.4,1.5069]
[1743419517100,1.11027,1801.5,1801.4,2.61719]
[1743419517299,1.4011,1801.6,1801.5,1.11027]
[1743419517300,2.51136,1801.6,1801.5,1.11027]
[1743419517499,2.51136,1801.6,1801.5,2.60277]
[1743419518198,2.51136,1801.6,1801.5,1.4925]
[1743419518400,2.51136,1801.6,1801.5,2.60277]
[1743419520904,4.31797,1801.7,1801.6,1.11021]
[1743419521097,4.31797,1801.7,1801.6,3.22431]
[1743419521618,6.0827,1801.8,1801.7,1.11015]
[1743419521919,8.2401757,1801.9,1801.8,1.11008]
[1743419522225,1.11008,1801.8,1801.7,3.25581]
[1743419523117,1.11008,1801.8,1801.7,1.4237]
[1743419523320,1.11027,1801.5,1801.4,3.21352]
[1743419524220,2.53577,1801.5,1801.4,3.21352]
[1743419525123,1.11039,1801.3,1801.2,1.1187157]
[1743419526422,2.48567,1801.4,1801.3,1.11039]
[1743419527115,1.3753,1801.4,1801.3,1.11039]
[1743419527315,1.11032,1801.5,1801.4,1.11029]
[1743419527516,2.48562,1801.5,1801.4,1.11029]
[1743419529127,1.11032,1801.5,1801.4,1.11029]
[1743419529424,0.6978,1801.6,1801.5,1.11027]
[1743419529425,7.13858,1801.6,1801.5,1.11027]
[1743419529716,3.22558,1801.6,1801.5,1.11027]
[1743419529916,1.11031,1801.5,1801.4,2.62398]
[1743419530223,2.52781,1801.5,1801.4,1.11028]
[1743419531226,1.11036,1801.4,1801.3,1.11034]
[1743419531423,1.11039,1801.3,1801.2,1.1187257]
[1743419532131,2.59548,1801.4,1801.3,1.11039]
[1743419533820,4.6108,1801.6,1801.4,1.11027]
[1743419534029,1.11027,1801.5,1801.4,1.84008]
[1743419534925,7.20615,1801.6,1801.5,1.11027]
[1743419535224,1.11027,1801.5,1801.4,1.8401]
[1743419535433,2.58767,1801.5,1801.4,1.8401]
[1743419535925,1.4774,1801.5,1801.4,1.8401]
[1743419536126,3.28546,1801.6,1801.5,1.11027]
[1743419536323,2.1752,1801.6,1801.4,1.84008]
[1743419536534,1.11027,1801.5,1801.4,1.84008]
[1743419536725,1.4774,1801.5,1801.4,1.84008]
[1743419537426,2.58767,1801.5,1801.4,1.84008]
[1743419538029,1.80803,1801.6,1801.5,1.11027]
[1743419538329,2.1552,1801.6,1801.5,1.11027]
[1743419538632,3.26541,1801.6,1801.5,1.11027]
[1743419539030,3.2078,1801.7,1801.6,1.11021]
[1743419539328,1.11015,1801.7,1801.6,1.86226]
[1743419540633,2.56753,1801.8,1801.7,1.11015]
[1743419540834,2.56753,1801.8,1801.7,1.80175]
[1743419541826,0.0083257,1801.9,1801.7,0.6916]
[1743419542025,0.0083257,1801.9,1801.8,1.11008]
[1743419542325,0.0083257,1801.9,1801.8,4.31788]
[1743419542828,8.22864,1802.2,1802.1,1.1099]
[1743419543032,3.911,1802.2,1802.1,1.1099]
[1743419543332,2.62182,1802.3,1802.2,1.10984]
[1743419544121,1.10985,1802.2,1802.1,1.10985]
[1743419544427,1.1099,1802.1,1802.0,2.58121]
[1743419544627,2.49148,1802.2,1802.1,1.1099]
[1743419545435,1.3816,1802.2,1802.1,1.1099]
[1743419546030,3.911,1802.3,1802.2,1.10984]
[1743419546230,5.2926,1802.3,1802.2,1.10984]
[1743419546733,6.40238,1802.3,1802.2,1.10984]
[1743419547332,6.40238,1802.3,1802.2,1.4376]
[1743419547536,9.61018,1802.3,1802.2,1.4376]
[1743419548236,1.10984,1802.2,1802.1,0.0083257]
[1743419548538,1.11018,1801.7,1801.6,1.11018]
[1743419548833,1.11012,1801.8,1801.7,1.11011]
[1743419549036,1.11015,1801.7,1801.6,2.54776]
[1743419549536,2.62265,1801.7,1801.6,2.54776]
[1743419550230,2.62268,1801.7,1801.6,1.11021]
[1743419550627,1.5125,1801.7,1801.6,1.11021]
[1743419551235,1.85293,1801.8,1801.7,1.11015]
[1743419551831,3.28023,1801.8,1801.7,1.11015]
[1743419552136,1.11015,1801.7,1801.6,2.61168]
[1743419552335,1.4273,1801.7,1801.6,2.61168]
[1743419552536,2.53745,1801.7,1801.6,2.61168]
[1743419552738,2.53745,1801.7,1801.6,2.61171]
[1743419554938,1.4273,1801.7,1801.6,2.61171]
[1743419556038,7.1178,1801.9,1801.6,1.5015]
[1743419556232,1.11012,1801.8,1801.7,3.29191]
[1743419556430,1.11008,1801.8,1801.7,2.1818]
[1743419556627,2.49338,1801.8,1801.7,2.1818]
[1743419557028,2.49338,1801.8,1801.7,3.29195]
[1743419557234,2.49338,1801.8,1801.7,2.1818]
[1743419557545,2.49338,1801.8,1801.7,1.446]
[1743419560844,1.3833,1801.8,1801.5,1.1185457]
[1743419561042,2.61825,1801.7,1801.6,2.58611]
[1743419561243,1.5081,1801.7,1801.5,0.0083257]
[1743419561445,2.61829,1801.7,1801.6,1.11021]
[1743419562449,1.11021,1801.6,1801.5,0.0083257]
[1743419562738,7.20171,1801.6,1801.5,0.0083257]
[1743419565039,1.11035,1801.4,1801.2,0.7041]
[1743419565247,1.11037,1801.4,1801.2,0.7041]
[1743419565444,1.11037,1801.4,1801.3,1.11036]
[1743419565648,1.11039,1801.3,1801.2,1.81451]
[1743419566047,2.6164957,1801.4,1801.3,1.11039]
[1743419566243,1.5061257,1801.4,1801.3,1.11039]
[1743419566546,0.0083257,1801.4,1801.3,1.11039]
[1743419566945,0.0083257,1801.4,1801.3,6.81819]
[1743419567146,8.22495,1801.7,1801.6,1.11021]
[1743419567553,5.01715,1801.7,1801.6,1.11021]
[1743419567849,3.907,1801.7,1801.6,1.11021]
[1743419568355,5.01715,1801.7,1801.6,1.11021]
[1743419568643,3.907,1801.7,1801.6,1.11021]
[1743419568845,1.11023,1801.6,1801.5,1.11022]
[1743419569754,6.4897,1801.7,1801.6,1.11021]
[1743419570050,0.0083257,1801.8,1801.7,1.11015]
[1743419571147,1.1184057,1801.8,1801.7,1.11015]
[1743419573253,0.0083257,1801.8,1801.7,1.11015]
[1743419573447,0.0083257,1801.8,1801.7,4.31795]
[1743419573854,3.906,1802.2,1802.1,1.1099]
[1743419574247,3.906,1802.2,1801.9,3.2078]
[1743419574549,1.1099,1802.1,1802.0,1.80262]
[1743419574852,5.0241857,1802.2,1802.1,1.1099]